bitfinex/quotes_SOLUSD_20260228
["timestamp","ask_amount","ask_price","bid_price","bid_amount"]
[1772262509760,17.26218923,78.65,78.61,17.26218923]
[1772262510167,17.26218923,78.66,78.621,0.0275741]
[1772262510455,17.26218923,78.66,78.583,5.36086188]
[1772262510456,1.05476,78.684,78.64,17.26218923]
[1772262510663,1.05476,78.684,78.603,5.36086188]
[1772262510664,12.70922562,78.683,78.65,17.28976333]
[1772262510869,12.70922562,78.683,78.66,17.26218923]
[1772262511236,29.97042944,78.69,78.65,17.26218923]
[1772262511539,29.97042944,78.69,78.637,0.02895787]
[1772262511540,44.47847785,78.69,78.66,17.26218923]
[1772262511761,12.70727985,78.696,78.68,17.26218923]
[1772262511961,12.70727985,78.696,78.67,17.26218923]
[1772262512180,12.70727985,78.696,78.66,17.26218923]
[1772262512474,1.05476,78.677,78.64,17.26218923]
[1772262512757,44.48511655,78.678,78.63,17.26218923]
[1772262512758,1.05476,78.669,78.63,17.26218923]
[1772262512943,17.26218923,78.67,78.63,17.26218923]
[1772262513559,12.7100333,78.678,78.64,17.26218923]
[1772262514662,1.05476,78.677,78.64,17.26218923]
[1772262514958,1.05476,78.669,78.63,17.26218923]
[1772262515855,1.05476,78.669,78.617,0.05516223]
[1772262516065,1.05476,78.669,78.526,50.93821461]
[1772262516066,1.05476,78.659,78.62,17.26218923]
[1772262516557,17.26218923,78.65,78.61,17.26218923]
[1772262516769,1.05476,78.649,78.6,17.26218923]
[1772262516946,1.05476,78.649,78.62,17.26218923]
[1772262517265,1.05476,78.649,78.61,17.26218923]
[1772262517661,12.71326502,78.658,78.62,17.26218923]
[1772262517859,63.54935878,78.679,78.594,44.53266151]
[1772262517860,12.70664176,78.699,78.651,0.05723644]
[1772262518047,12.70664176,78.699,78.609,0.05819736]
[1772262518048,1.05476,78.698,78.609,0.05819736]
[1772262518241,12.70664176,78.699,78.63,17.26218923]
[1772262518242,1.05476,78.669,78.63,17.26218923]
[1772262518647,17.26218923,78.65,78.61,17.26218923]
[1772262518848,1.05476,78.649,78.61,17.26218923]
[1772262519263,1.05476,78.639,78.61,17.26218923]
[1772262519646,1.05476,78.651,78.62,17.26218923]
[1772262520250,108.0490161,78.668,78.617,0.05997024]
[1772262520251,1.08119152,78.667,78.617,0.05997024]
[1772262520469,12.71164895,78.668,78.64,17.26218923]
[1772262520768,1.08119152,78.676,78.64,17.26218923]
[1772262520971,1.08119152,78.659,78.62,17.26218923]
[1772262521348,1.08119152,78.659,78.6,31.80637026]
[1772262521349,17.26218923,78.66,78.508,114.51599563]
[1772262521549,39.26476,78.659,78.56,17.26218923]
[1772262521760,17.26218923,78.63,78.59,17.26218923]
[1772262522070,17.26218923,78.62,78.58,17.26218923]
[1772262522268,17.26218923,78.63,78.58,17.26218923]
[1772262522464,17.26218923,78.63,78.575,0.06654506]
[1772262522653,44.50717836,78.639,78.6,17.26218923]
[1772262522854,1.05476,78.638,78.6,17.26218923]
[1772262523271,1.05476,78.638,78.551,126.98489868]
[1772262523272,1.05476,78.619,78.564,0.07208784]
[1772262523471,1.05476,78.599,78.546,12.73135279]
[1772262523771,1.05476,78.603,78.57,17.26218923]
[1772262523961,1.05476,78.603,78.551,0.07208784]
[1772262523962,1.05476,78.599,78.551,0.07208784]
[1772262524277,1.05476,78.599,78.57,17.26218923]
[1772262524957,12.72297005,78.598,78.56,17.26218923]
[1772262525371,12.72297005,78.598,78.552,12.73042061]
[1772262525372,1.05476,78.607,78.57,17.26218923]
[1772262525577,1.05476,78.607,78.561,0.07316044]
[1772262525578,17.26218923,78.6,78.56,17.26218923]
[1772262525779,18.31694923,78.6,78.56,17.26218923]
[1772262525977,1.05476,78.599,78.56,17.26218923]
[1772262526177,1.05476,78.599,78.552,12.73042061]
[1772262526556,12.72146671,78.608,78.57,17.33581951]
[1772262526764,12.72146671,78.608,78.57,17.26218923]
[1772262526765,1.05476,78.607,78.57,17.26218923]
[1772262526956,1.05476,78.607,78.571,12.72734214]
[1772262527156,13.77632708,78.607,78.571,12.72734214]
[1772262527357,1.05476,78.607,78.571,12.72734214]
[1772262527575,12.72167519,78.606,78.571,12.72734214]
[1772262527761,1.05476,78.605,78.571,12.72734214]
[1772262528656,1.05476,78.599,78.561,12.7289622]
[1772262528863,1.05476,78.599,78.57,17.26218923]
[1772262529374,12.72297005,78.598,78.57,17.26218923]
[1772262530073,1.05476,78.597,78.57,17.26218923]
[1772262530373,1.05476,78.597,78.56,17.26218923]
[1772262531163,12.72118968,78.609,78.57,17.26218923]
[1772262531373,1.05476,78.618,78.58,17.26218923]
[1772262531674,1.05476,78.618,78.573,12.72698365]
[1772262531877,1.05476,78.618,78.574,0.0753385]
[1772262532193,1.05476,78.618,78.58,17.26218923]
[1772262532475,61.78012358,78.62,78.58,17.26218923]
[1772262532476,1.05476,78.619,78.58,17.26218923]
[1772262533279,5.36086188,78.689,78.562,31.82200045]
[1772262533280,12.71795393,78.629,78.6,17.26218923]
[1772262533770,1.05476,78.643,78.61,17.26218923]
[1772262534555,1.05476,78.643,78.6,17.26218923]
[1772262534756,1.05476,78.607,78.527,0.07587126]
[1772262534964,1.54684977,78.58,78.527,0.07587126]
[1772262535167,17.26218923,78.58,78.527,0.07587126]
[1772262535370,12.72604639,78.579,78.534,12.7332162]
[1772262535577,12.72604639,78.579,78.53,17.26218923]
[1772262535578,17.26218923,78.57,78.53,17.26218923]
[1772262535971,12.72604639,78.579,78.54,17.26218923]
[1772262536176,12.72523858,78.584,78.55,17.46218923]
[1772262536378,29.98656361,78.59,78.55,17.46218923]
[1772262536660,12.72437438,78.59,78.55,30.19280768]
[1772262536860,29.98656361,78.59,78.55,30.19280768]
[1772262537077,63.59296135,78.626,78.57,17.26218923]
[1772262537078,1.03196044,78.6,78.57,17.26218923]
[1772262537362,1.03196044,78.599,78.56,17.26218923]
[1772262537670,1.03196044,78.611,78.58,17.26218923]
[1772262538578,1.03196044,78.619,78.58,17.26218923]
[1772262539280,1.03196044,78.619,78.56,17.26218923]
[1772262539281,1.03196044,78.599,78.56,17.26218923]
[1772262539481,44.49586187,78.659,78.55,0.2]
[1772262539482,1.03196044,78.639,78.591,0.9954219]
[1772262539782,1.03196044,78.639,78.6,17.26218923]
[1772262539987,1.03196044,78.639,78.591,0.9954219]
[1772262540166,1.03196044,78.639,78.6,17.26218923]
[1772262540364,1.03196044,78.639,78.61,17.26218923]
[1772262540669,18.29414967,78.62,78.58,17.26218923]
[1772262540869,1.03196044,78.62,78.59,17.26218923]
[1772262541369,17.26218923,78.66,78.583,0.28432314]
[1772262541667,17.26218923,78.63,78.582,12.72556056]
[1772262541877,17.26218923,78.63,78.59,17.26218923]
[1772262542065,17.26218923,78.65,78.6,17.26218923]
[1772262542389,17.26218923,78.64,78.591,0.9954219]
[1772262542578,17.26218923,78.63,78.591,0.9954219]
[1772262543083,17.26218923,78.63,78.57,31.81836184]
[1772262543084,17.26218923,78.62,78.581,12.7257225]
[1772262543292,17.26218923,78.61,78.58,0.9954219]
[1772262543582,12.72032431,78.615,78.571,13.72262754]
[1772262543765,1.03196044,78.614,78.572,0.9954219]
[1772262544166,18.29414967,78.61,78.572,0.9954219]
[1772262544389,13.26246983,78.61,78.572,0.9954219]
[1772262544780,1.03196044,78.61,78.572,0.9954219]
[1772262544977,63.57151125,78.652,78.581,0.9954219]
[1772262544978,12.71892448,78.623,78.581,0.9954219]
[1772262545168,12.71823299,78.628,78.591,0.9954219]
[1772262545368,13.75019343,78.628,78.592,12.72394136]
[1772262545563,1.03196044,78.627,78.592,12.72394136]
[1772262545867,17.26218923,78.66,78.592,12.72394136]
[1772262545868,1.03196044,78.629,78.593,0.9954219]
[1772262546267,1.03196044,78.629,78.586,13.72019005]
[1772262546465,1.03196044,78.629,78.59,17.26218923]
[1772262546668,1.03196044,78.629,78.59,18.25761113]
[1772262546902,1.03196044,78.629,78.59,0.9954219]
[1772262547072,17.26218923,78.63,78.57,31.81851206]
[1772262547073,1.03196044,78.619,78.577,0.9954219]
[1772262547273,38.21,78.659,78.581,0.9954219]
[1772262547274,17.3342259,78.63,78.581,0.9954219]
[1772262547485,13.74991437,78.629,78.59,17.3342259]
[1772262547798,17.3342259,78.66,78.582,44.53946196]
[1772262547799,12.71633667,78.639,78.601,0.9954219]
[1772262548086,1.03196044,78.638,78.601,0.9954219]
[1772262549275,17.3342259,78.61,78.572,0.9954219]
[1772262549472,1.03196044,78.611,78.575,12.72654263]
[1772262549781,1.03196044,78.629,78.591,0.9954219]
[1772262550479,30.05215799,78.63,78.58,18.41087607]
[1772262550480,1.05832979,78.619,78.58,18.41087607]
[1772262550687,1.05832979,78.619,78.58,1.07665017]
[1772262550871,1.05832979,78.609,78.57,1.07665017]
[1772262551078,17.3342259,78.6,78.571,12.72734214]
[1772262551274,1.05832979,78.609,78.571,12.72734214]
[1772262551493,1.05832979,78.607,78.57,1.07665017]
[1772262551795,1.05832979,78.607,78.57,13.80412695]
[1772262551996,1.05832979,78.607,78.57,1.07665017]
[1772262552595,1.05832979,78.607,78.571,12.72734214]
[1772262553088,1.05832979,78.599,78.559,13.80591225]
[1772262553293,1.05832979,78.622,78.581,1.07665017]
[1772262553498,1.05832979,78.622,78.58,17.3342259]
[1772262553499,12.71924803,78.621,78.583,1.07665017]
[1772262553874,1.05832979,78.619,78.583,1.07665017]
[1772262554780,1.05832979,78.619,78.582,12.72556056]
[1772262554982,1.03036535,78.619,78.582,12.72556056]
[1772262555187,1.03036535,78.619,78.583,1.07665017]
[1772262555487,1.03036535,78.619,78.551,63.33198529]
[1772262555488,17.3342259,78.61,78.572,1.07665017]
[1772262556087,44.51906687,78.618,78.573,12.72701818]
[1772262556282,44.51906687,78.618,78.561,1.07665017]
[1772262556283,38.21,78.617,78.561,1.07665017]
[1772262556481,38.21,78.617,78.52,63.17345932]
[1772262556482,17.3342259,78.59,78.556,12.7297154]
[1772262557399,1.05832979,78.588,78.552,12.7303879]
[1772262557718,1.05832979,78.588,78.551,12.73058267]
[1772262557885,1.05832979,78.588,78.551,13.80723284]
[1772262558089,1.05832979,78.588,78.552,1.07665017]
[1772262558714,1.05832979,78.579,78.55,0.2]
[1772262558908,1.05832979,78.579,78.55,12.93074196]
[1772262559086,1.05832979,78.579,78.55,0.2]
[1772262559292,1.05832979,78.579,78.55,12.93069191]
[1772262559879,1.05832979,78.597,78.55,18.61087607]
[1772262560084,1.05832979,78.589,78.55,0.2]
[1772262560489,18.39255569,78.6,78.561,1.07665017]
[1772262560786,17.3342259,78.59,78.561,1.07665017]
[1772262561095,1.05832979,78.603,78.561,1.07665017]
[1772262561408,17.3342259,78.6,78.561,1.07665017]
[1772262561706,1.05832979,78.603,78.571,1.07665017]
[1772262562002,17.3342259,78.61,78.571,1.07665017]
[1772262562206,18.39255569,78.61,78.571,1.07665017]
[1772262562501,12.72021878,78.615,78.55,1e-08]
[1772262562502,1.05832979,78.579,78.55,1e-08]
[1772262562804,17.3342259,78.56,78.53,1.07665017]
[1772262562985,17.3342259,78.56,78.53,13.81061888]
[1772262563992,44.52076574,78.615,78.541,1.07665017]
[1772262563993,1.05832979,78.579,78.541,1.07665017]
[1772262564189,1.05832979,78.579,78.55,17.3342259]
[1772262564388,1.05832979,78.592,78.56,17.3342259]
[1772262564604,12.72313192,78.597,78.561,1.07665017]
[1772262565086,1.05832979,78.596,78.561,1.07665017]
[1772262565907,17.3342259,78.59,78.561,1.07665017]
[1772262566117,17.3342259,78.59,78.561,12.72893564]
[1772262566414,17.3342259,78.58,78.55,1.07665017]
[1772262566891,18.39255569,78.59,78.55,1.07665017]
[1772262567093,17.3342259,78.56,78.527,12.73446023]
[1772262567403,1.05832979,78.59,78.485,1.07665017]
[1772262567404,17.3342259,78.54,78.485,1.07665017]
[1772262567701,17.3342259,78.54,78.421,63.85209494]
[1772262567702,17.3342259,78.53,78.491,1.07665017]
[1772262567907,12.73414916,78.529,78.491,1.07665017]
[1772262568087,17.3342259,78.52,78.491,1.07665017]
[1772262568292,44.56952207,78.529,78.492,12.74015186]
[1772262568293,12.73414916,78.529,78.492,12.74015186]
[1772262568489,12.73414916,78.529,78.493,1.07665017]
[1772262568791,17.3342259,78.54,78.5,1.07665017]
[1772262568986,17.3342259,78.54,78.501,1.07665017]
[1772262569793,17.3342259,78.53,78.492,12.74015186]
[1772262569994,1.05832979,78.539,78.493,1.07665017]
[1772262570187,17.3342259,78.53,78.493,1.07665017]
[1772262570494,17.3342259,78.52,78.493,1.07665017]
[1772262570701,17.3342259,78.51,78.482,1.07665017]
[1772262571610,17.3342259,78.51,78.482,13.81834157]
[1772262571913,17.3342259,78.51,78.482,1.07665017]
[1772262572210,17.3342259,78.51,78.47,17.5342259]
[1772262572211,17.3342259,78.5,78.472,1.07665017]
[1772262572391,0.28432314,78.508,78.47,0.2]
[1772262572392,17.3342259,78.49,78.47,0.2]
[1772262572893,0.28432314,78.508,78.441,31.87094873]
[1772262572894,17.3342259,78.47,78.441,1.07665017]
[1772262573091,1.05832979,78.469,78.426,1.07665017]
[1772262573486,17.3342259,78.45,78.415,13.82919399]
[1772262574407,17.3342259,78.44,78.415,1.07665017]
[1772262574715,17.3342259,78.45,78.411,1.07665017]
[1772262574920,17.3342259,78.45,78.41,34.57300871]
[1772262574921,17.3342259,78.45,78.421,1.07665017]
[1772262575293,18.39255569,78.46,78.421,1.07665017]
[1772262575795,17.3342259,78.49,78.45,18.41087607]
[1772262575987,38.21,78.527,78.42,17.3342259]
[1772262575988,12.73771765,78.507,78.461,1.07665017]
[1772262576312,13.79604744,78.507,78.466,12.74429511]
[1772262576509,6.65745641,78.528,78.466,12.74429511]
[1772262576510,1.05832979,78.53,78.49,17.3342259]
[1772262576702,1.05832979,78.509,78.467,1.07665017]
[1772262576900,17.3342259,78.5,78.467,13.82086111]
[1772262578512,1.34265293,78.508,78.47,17.3342259]
[1772262578707,1.05832979,78.507,78.467,13.82086111]
[1772262578915,1.05832979,78.507,78.47,17.3342259]
[1772262579207,17.3342259,78.51,78.471,1.07665017]
[1772262579408,17.3342259,78.51,78.467,44.60473829]
[1772262579409,17.3342259,78.52,78.481,1.07665017]
[1772262579614,12.73577095,78.519,78.481,1.07665017]
[1772262580499,17.3342259,78.49,78.445,63.73845791]
[1772262580705,17.3342259,78.49,78.44,17.3342259]
[1772262580900,12.73577095,78.519,78.437,1.02215403]
[1772262580901,17.3342259,78.47,78.437,1.02215403]
[1772262581508,17.3342259,78.47,78.438,12.74892271]
[1772262581814,17.3342259,78.46,78.438,12.74892271]
[1772262582011,0.28432314,78.515,78.45,17.3342259]
[1772262582213,17.3342259,78.48,78.438,44.6212295]
[1772262582419,17.3342259,78.49,78.45,17.3342259]
[1772262582710,17.3342259,78.49,78.438,44.6212295]
[1772262582711,17.3342259,78.5,78.46,17.3342259]
[1772262582895,12.73901578,78.499,78.46,17.3342259]
[1772262583093,12.73901578,78.499,78.451,44.61383538]
[1772262583094,0.02896246,78.52,78.47,17.3342259]
[1772262583400,17.3342259,78.51,78.47,17.3342259]
[1772262583600,0.02896246,78.52,78.48,17.3342259]
[1772262583601,17.3342259,78.52,78.48,17.3342259]
[1772262583819,17.3342259,78.51,78.47,17.3342259]
[1772262584113,0.14216157,78.519,78.47,17.3342259]
[1772262584618,12.87793252,78.519,78.48,17.3342259]
[1772262584912,12.87793252,78.519,78.438,1.1067972]
[1772262584913,17.3342259,78.5,78.438,1.1067972]
[1772262585219,17.3342259,78.5,78.411,108.40315771]
[1772262585220,17.3342259,78.49,78.461,1.1067972]
[1772262585601,17.3342259,78.48,78.441,1.1067972]
[1772262585800,17.3342259,78.49,78.441,1.1067972]
[1772262586207,17.3342259,78.49,78.451,1.1067972]
[1772262586625,12.74226226,78.479,78.451,1.1067972]
[1772262586798,12.74226226,78.479,78.453,1.1067972]
[1772262587000,0.28432314,78.478,78.442,1.1067972]
[1772262587510,17.3342259,78.46,78.411,1.1067972]
[1772262587815,17.3342259,78.45,78.421,1.1067972]
[1772262588018,17.3342259,78.45,78.411,44.63659435]
[1772262588019,17.3342259,78.44,78.412,1.1067972]
[1772262588616,12.74876018,78.439,78.412,1.1067972]
[1772262588917,12.74790909,78.445,78.413,12.75298738]
[1772262589298,17.3342259,78.44,78.412,1.1067972]
[1772262589715,12.74790909,78.445,78.413,1.1067972]
[1772262589913,12.74713508,78.449,78.413,1.1067972]
[1772262590114,17.3342259,78.43,78.41,4.48545806]
[1772262590699,63.62772752,78.523,78.421,1.1067972]
[1772262590922,0.14216157,78.469,78.431,1.1067972]
[1772262591418,95.50247032,78.532,78.441,1.1067972]
[1772262591722,17.3342259,78.47,78.441,1.1067972]
[1772262592019,17.3342259,78.46,78.411,12.75331267]
[1772262592321,17.3342259,78.45,78.411,12.75331267]
[1772262592515,17.3342259,78.46,78.42,17.3342259]
[1772262592717,12.74551039,78.459,78.42,17.3342259]
[1772262592917,12.74551039,78.459,78.421,12.75168641]
[1772262593121,1.03798483,78.496,78.421,44.63090243]
[1772262593321,1.03798483,78.496,78.45,17.3342259]
[1772262593322,17.3342259,78.49,78.45,17.3342259]
[1772262593624,17.3342259,78.49,78.421,44.63090243]
[1772262593625,1.03798483,78.479,78.44,17.3342259]
[1772262593820,17.3342259,78.47,78.43,17.3342259]
[1772262594001,5.36086188,78.522,78.412,1.0443613]
[1772262594002,17.3342259,78.45,78.412,1.0443613]
[1772262594512,0.28432314,78.459,78.421,1.0443613]
[1772262594698,152.79616989,78.536,78.421,1.0443613]
[1772262594904,0.14216157,78.479,78.441,1.0443613]
[1772262595206,17.3342259,78.46,78.417,1.0443613]
[1772262595409,17.3342259,78.46,78.421,1.0443613]
[1772262595610,17.3342259,78.45,78.421,1.0443613]
[1772262596810,1.03798483,78.459,78.421,13.79600178]
[1772262597310,1.03798483,78.459,78.422,1.0443613]
[1772262597516,0.28432314,78.469,78.431,1.0443613]
[1772262597907,1.03798483,78.48,78.44,17.3342259]
[1772262598112,63.69487695,78.5,78.45,17.3342259]
[1772262598113,17.3342259,78.49,78.45,17.3342259]
[1772262598320,17.3342259,78.49,78.451,1.0443613]
[1772262598628,1.03798483,78.491,78.46,17.3342259]
[1772262598827,17.3342259,78.49,78.451,1.0443613]
[1772262599121,17.3342259,78.49,78.452,1.0443613]
[1772262599122,12.74063881,78.489,78.452,1.0443613]
[1772262599524,12.74063881,78.489,78.424,5.36086188]
[1772262599525,17.3342259,78.47,78.439,1.0443613]
[1772262599826,17.3342259,78.48,78.441,1.0443613]
[1772262600211,17.3342259,78.48,78.451,1.0443613]
[1772262600419,0.28432314,78.488,78.451,1.0443613]
[1772262600726,13.77862364,78.489,78.451,1.0443613]
[1772262600927,13.77862364,78.489,78.45,17.3342259]
[1772262600928,12.74096347,78.487,78.452,13.79100893]
[1772262601117,17.3342259,78.49,78.46,17.3342259]
[1772262601322,12.74063881,78.489,78.46,17.3342259]
[1772262601521,17.3342259,78.52,78.48,18.3785872]
[1772262601724,18.37221073,78.52,78.48,18.3785872]
[1772262602028,63.2187723,78.598,78.48,18.3785872]
[1772262602029,1.03798483,78.546,78.51,17.3342259]
[1772262602208,12.73155515,78.545,78.51,18.3785872]
[1772262602409,1.03798483,78.529,78.49,17.3342259]
[1772262602606,44.56044304,78.545,78.453,1.0443613]
[1772262602607,1.03798483,78.499,78.453,1.0443613]
[1772262602808,17.3342259,78.48,78.443,1.0443613]
[1772262603109,17.3342259,78.46,78.411,12.75331267]
[1772262603327,12.74063881,78.489,78.411,12.75331267]
[1772262603328,17.3342259,78.45,78.411,12.75331267]
[1772262603530,17.3342259,78.43,78.361,12.76145021]
[1772262603716,1.03798483,78.439,78.361,12.76145021]
[1772262603717,1.03798483,78.439,78.4,17.3342259]
[1772262603919,17.3342259,78.45,78.41,17.3342259]
[1772262604120,18.37221073,78.45,78.41,17.3342259]
[1772262604318,17.3342259,78.48,78.4,17.3342259]
[1772262604319,18.37221073,78.44,78.4,17.3342259]
[1772262604637,17.3342259,78.46,78.43,17.3342259]
[1772262605012,12.74551039,78.459,78.43,17.3342259]
[1772262605221,12.74551039,78.459,78.431,12.75006056]
[1772262605432,12.74551039,78.459,78.43,17.3342259]
[1772262605632,12.74471166,78.464,78.431,1.0443613]
[1772262605817,17.3342259,78.46,78.431,1.0443613]
[1772262606134,12.74471166,78.464,78.44,17.3342259]
[1772262606320,12.74471166,78.464,78.431,1.0443613]
[1772262606321,12.74378748,78.47,78.45,17.3342259]
[1772262606510,12.74378748,78.47,78.44,17.3342259]
[1772262606720,1.03798483,78.489,78.46,17.3342259]
[1772262607121,1.03798483,78.487,78.46,17.3342259]
[1772262607330,1.03798483,78.487,78.46,14.49205582]
[1772262607824,1.03798483,78.487,78.451,13.79103251]
[1772262607825,1.03798483,78.467,78.42,14.49205582]
[1772262608029,1.03798483,78.46,78.43,14.49205582]
[1772262608534,1.03798483,78.469,78.431,1.0443613]
[1772262609036,1.03798483,78.467,78.431,1.0443613]
[1772262609339,1.03798483,78.467,78.43,14.49205582]
[1772262610013,1.03798483,78.459,78.42,14.49205582]
[1772262610410,1.03798483,78.459,78.421,12.75168641]
[1772262610616,1.03798483,78.459,78.42,14.49205582]
[1772262611020,13.83942254,78.458,78.43,14.49205582]
[1772262611220,1.0937497,78.457,78.42,14.49205582]
[1772262612020,1.0937497,78.457,78.414,12.752712]
[1772262612222,14.49205582,78.43,78.391,1.04659621]
[1772262612419,14.49205582,78.43,78.4,14.49205582]
[1772262612621,1.0937497,78.435,78.4,15.53865203]
[1772262612838,1.0937497,78.446,78.41,15.53865203]
[1772262613027,44.61724775,78.445,78.41,15.53865203]
[1772262613235,1.0937497,78.444,78.41,15.53865203]
[1772262613619,14.49205582,78.43,78.375,1.04659621]
[1772262613946,1.0937497,78.436,78.4,14.49205582]
[1772262614252,12.74778507,78.445,78.41,14.49205582]
[1772262614452,12.74778507,78.445,78.42,14.49205582]
[1772262615221,1.0937497,78.451,78.43,14.49205582]
[1772262615421,12.74697259,78.45,78.43,14.49205582]
[1772262615629,12.74627103,78.455,78.44,14.49205582]
[1772262616257,13.84002073,78.455,78.43,14.49205582]
[1772262616549,13.84002073,78.455,78.44,14.49205582]
[1772262616834,13.84002073,78.455,78.43,14.49205582]
[1772262617229,12.74627103,78.455,78.43,14.49205582]
[1772262617934,1.0937497,78.464,78.43,14.49205582]
[1772262618238,1.0937497,78.449,78.42,14.49205582]
[1772262619734,12.74729757,78.448,78.42,14.49205582]
[1772262619927,12.74729757,78.448,78.414,1.04659621]
[1772262619928,12.74551039,78.459,78.43,15.53865203]
[1772262620953,1.0937497,78.458,78.42,14.49205582]
[1772262621666,1.0937497,78.458,78.43,14.49205582]
[1772262621836,12.74463028,78.465,78.44,14.49205582]
[1772262622246,13.83837998,78.465,78.44,14.49205582]
[1772262622956,12.74307413,78.474,78.45,14.49205582]
[1772262623337,12.74225471,78.48,78.46,14.49205582]
[1772262623846,63.69414672,78.501,78.441,12.74843512]
[1772262623847,12.74015186,78.492,78.47,14.49205582]
[1772262624634,1.0937497,78.491,78.454,1.04659621]
[1772262624836,1.0937497,78.469,78.44,14.49205582]
[1772262625052,1.37807284,78.478,78.432,1.04659621]
[1772262625246,1.0937497,78.466,78.432,1.04659621]
[1772262626464,1.0937497,78.466,78.43,14.49205582]
[1772262626858,1.0937497,78.464,78.43,14.49205582]
[1772262627057,1.0937497,78.459,78.43,14.49205582]
[1772262628356,1.0937497,78.482,78.451,1.04659621]
[1772262628667,1.0937497,78.497,78.47,14.49205582]
[1772262628960,1.0937497,78.495,78.47,14.49205582]
[1772262629165,12.73950264,78.496,78.48,14.49205582]
[1772262629344,12.73950264,78.496,78.466,12.74437335]
[1772262629345,1.0937497,78.517,78.49,14.49205582]
[1772262630348,1.0937497,78.517,78.444,5.36086188]
[1772262630550,1.0937497,78.517,78.4,14.49205582]
[1772262630551,1.0937497,78.497,78.46,15.53865203]
[1772262630738,1.0937497,78.487,78.45,14.49205582]
[1772262630939,14.49205582,78.48,78.45,14.49205582]
[1772262631142,12.74201366,78.481,78.451,12.74681011]
[1772262631349,12.74201366,78.481,78.45,14.49205582]
[1772262631350,1.0937497,78.479,78.45,14.49205582]
[1772262631553,12.74201366,78.481,78.46,14.49205582]
[1772262631749,15.58580552,78.49,78.46,14.49205582]
[1772262631750,12.74118989,78.486,78.461,1.04659621]
[1772262632269,12.74118989,78.486,78.46,14.49205582]
[1772262633571,13.83493959,78.486,78.46,14.49205582]
[1772262633765,13.83493959,78.486,78.45,1.04659621]
[1772262633948,1.0937497,78.485,78.45,1.04659621]
[1772262634147,1.0937497,78.485,78.451,12.74681011]
[1772262634854,1.0937497,78.485,78.45,15.53865203]
[1772262635279,12.74145048,78.484,78.45,15.53865203]
[1772262635476,1.0937497,78.479,78.45,14.49205582]
[1772262635764,14.49205582,78.48,78.44,15.53865203]
[1772262635765,1.0937497,78.477,78.44,15.53865203]
[1772262636176,0.28432314,78.478,78.431,12.75004767]
[1772262636177,1.0937497,78.469,78.431,12.75004767]
[1772262636544,1.0937497,78.469,78.44,14.49205582]
[1772262637169,1.0937497,78.469,78.432,1.04659621]
[1772262637362,1.0937497,78.467,78.432,1.04659621]
[1772262638373,1.0937497,78.459,78.43,14.49205582]
[1772262638576,1.0937497,78.459,78.422,1.04659621]
[1772262638874,1.0937497,78.459,78.43,14.49205582]
[1772262639371,31.86012132,78.468,78.431,1.04659621]
[1772262639668,1.0937497,78.466,78.431,1.04659621]
[1772262640673,1.04997398,78.459,78.423,12.75130737]
[1772262641167,14.49205582,78.43,78.397,1.05924004]
[1772262641378,108.325793,78.467,78.313,89.28685401]
[1772262641379,1.0941986,78.454,78.41,14.49205582]
[1772262641566,12.74648515,78.453,78.43,14.49205582]
[1772262642374,14.49205582,78.45,78.41,19.8529177]
[1772262642579,1.0941986,78.449,78.41,15.55129586]
[1772262643074,1.0941986,78.439,78.4,15.55129586]
[1772262643374,1.0941986,78.439,78.401,1.05924004]
[1772262643375,1.0941986,78.437,78.401,1.05924004]
[1772262643758,1.0941986,78.437,78.4,14.49205582]
[1772262643759,12.74892271,78.438,78.41,14.49205582]
[1772262643951,12.74892271,78.438,78.41,15.55129586]
[1772262644274,12.74892271,78.438,78.411,1.05924004]
[1772262644453,12.74824912,78.443,78.411,1.05924004]
[1772262645675,12.74824912,78.443,78.411,13.81251694]
[1772262645870,12.74824912,78.443,78.412,1.05924004]
[1772262646976,12.74551039,78.459,78.421,1.05924004]
[1772262647976,1.0941986,78.458,78.421,1.05924004]
[1772262648371,0.28432314,78.457,78.42,14.49205582]
[1772262648559,14.49205582,78.43,78.4,1.05924004]
[1772262648959,12.75038569,78.429,78.401,1.05924004]
[1772262649387,12.75038569,78.429,78.403,1.05924004]
[1772262651077,13.84637284,78.418,78.382,1.05924004]
[1772262651282,1.0941986,78.428,78.391,1.05924004]
[1772262651665,14.49205582,78.42,78.391,1.05924004]
[1772262652168,1.0941986,78.428,78.391,1.05924004]
[1772262652363,14.49205582,78.43,78.391,1.05924004]
[1772262652570,44.90534305,78.439,78.363,108.46955833]
[1772262652571,44.62101991,78.439,78.401,1.05924004]
[1772262652786,1.0941986,78.438,78.401,1.05924004]
[1772262653781,13.84328385,78.437,78.403,1.05924004]
[1772262653986,1.0941986,78.436,78.403,1.05924004]
[1772262654282,14.49205582,78.43,78.403,1.05924004]
[1772262655564,12.75038569,78.429,78.403,1.05924004]
[1772262655764,44.62634993,78.429,78.403,1.05924004]
[1772262656084,1.0941986,78.419,78.382,6.42010192]
[1772262656267,1.0941986,78.419,78.381,12.75819395]
[1772262656268,1.0941986,78.419,78.388,5.36086188]
[1772262656468,1.0941986,78.419,78.388,1.05924004]
[1772262656767,14.49205582,78.42,78.388,1.05924004]
[1772262657178,44.63204069,78.419,78.39,1.05924004]